[Event "6th Uppsala Young Champions 2019"]
[Site "Uppsala"]
[Date "2019.10.28"]
[Round "5.15"]
[White "Muntean, Victor"]
[Black "Grahn, Vidar"]
[Result "1-0"]
[ECO "B22"]
[WhiteElo "2020"]
[BlackElo "1926"]
[Annotator "NA"]
[PlyCount "93"]
[EventDate "2019.10.25"]
[EventType "swiss"]
[EventCountry "SWE"]
[SourceTitle "playchess.com"]
[Source "ChessBase"]
[SourceQuality "1"]
[TimeControl "5400+30"]

{[%evp 21,93,9,27,7,8,3,0,0,24,15,38,11,57,-66,-7,-22,32767,7,32767,32767,32767,60,32767,32767,140,112,32767,32767,32767,132,32767,169,167,32767,32767,32767,32767,32767,300,358,314,270,295,314,336,32767,395,431,32767,32767,32767,597,619,462,483,32767,32767,750,739,798,1185,32767,32767,32767,32767,32767,32767,32767,32767,32767,32767,32767,32767,29981]} 1. e4 {[%emt 1:30:30]} c5 {[%emt 1:30:30]} 2. c3 {[%emt 0:00:30]} d5 {[%emt 0:00:30]} 3. exd5 {[%emt 0:00:30]} Qxd5 {[%emt 0:00:30]} 4. d4 {[%emt 0:00:30]} Nc6 {[%emt 0:00:30]} 5. Nf3 {[%emt 0:00:30]} Bg4 {[%emt 0:00:30]} 6. Be2 {[%emt 0:00:30]} cxd4 {[%emt 0:00:30]} 7. cxd4 {[%emt 0:00:30]} e6 {[%emt 0:00:30]} 8. Nc3 {[%emt 0:00:30]} Qa5 {[%emt 0:00:30]} 9. O-O {[%emt 0:00:30]} Nf6 {[%emt 0:00:30]} 10. h3 {[%emt 0:00:30]} Bh5 {[%emt 0:00:30]} 11. Qb3 {[%emt 0:00:30]} Qb4 {[%emt 0:00:30]} 12. Qxb4 {[%emt 0:00:30]} Bxb4 {[%emt 0:00:30]} 13. Be3 {[%emt 0:00:30]} O-O {[%emt 0:00:30]} 14. a3 {[%emt 0:00:30] B22: Sicilian: 2 c3} (14. Rac1 Rfd8 15. Rfd1 Nd5 16. Kf1 Nxe3+ 17. fxe3 f6 18. Ne4 Bf7 19. Nc5 Bxc5 20. Rxc5 Nb4 21. a3 b6 {½-½ (30) Simutowe,A (2481)-Jones,G (2554) Cape Town 2009}) 14... Be7 15. Rfd1 {[%emt 0:00:30]} Rfd8 {[%emt 0:01:00]} 16. Rac1 {[%emt 0:00:30]} Rac8 {[%emt 0:00:30]} 17. Na4 $146 {[%emt 0:00:30]} ({Better is Predecessor:} 17. g4 $11 Bg6 18. Ne5 (18. Nh4 Kh8 19. Nxg6+ hxg6 20. Bf3 Nd5 21. Nxd5 exd5 {½-½ (81) Van Weersel,A-Bensdorp,M Leiden 1998})) 17... Nd5 {[%emt 0:00:30]} (17... Bxf3 $1 $15 18. Bxf3 {[#]} Nxd4 $1 {[%mdl 512]}) 18. Nc5 {[%emt 0:00:30]} Bxc5 {[%emt 0:00:30]} 19. dxc5 {[%emt 0:00:30]} Nxe3 {[%emt 0:00:30]} 20. fxe3 {[%emt 0:00:30]} Ne7 {[%emt 0:00:30]} 21. b4 {[%emt 0:00:30]} a6 {[%emt 0:00:30]} 22. Kf2 {[%emt 0:00:30]} Nd5 {[%emt 0:00:30] [#]} (22... Bxf3 $14 23. Bxf3 (23. gxf3 Kf8 $14) 23... Nc6) 23. Rd4 {[%emt 0:00:30]} ({White should play} 23. c6 $1 $18 {[%mdl 512]} bxc6 24. Bxa6) 23... Kf8 {[%emt 0:00:30]} 24. g4 {[%emt 0:00:30]} Bg6 {[%emt 0:00:30]} 25. Ne5 {[%emt 0:00:30]} Ne7 {[%emt 0:00:30]} 26. Rcd1 {[%emt 0:00:30]} Rxd4 {[%emt 0:00:30]} 27. Rxd4 {[%emt 0:00:30]} Ke8 {[%emt 0:00:30]} 28. Nc4 {[%emt 0:00:30]} e5 {[%emt 0:00:30]} 29. Rd1 {[%emt 0:00:30]} Rd8 {[%emt 0:00:30]} 30. Nd6+ {[%emt 0:00:30]} Kf8 {[%emt 0:00:30]} 31. Nxb7 {[%emt 0:00:30]} Rxd1 {[%emt 0:00:30]} 32. Bxd1 {[%emt 0:00:30]} Bd3 {[%emt 0:00:30]} 33. Be2 {[%emt 0:00:30]} Bxe2 {[%emt 0:00:30]} 34. Kxe2 {[%emt 0:00:30]} Nc6 {[%emt 0:00:30]} 35. Kd3 {[%emt 0:00:30]} Ke7 {[%emt 0:00:30]} 36. Kc4 {[%emt 0:00:30]} Ke6 {[%emt 0:00:30]} 37. b5 {[%emt 0:00:30]} axb5+ {[%emt 0:00:30]} 38. Kxb5 {[%emt 0:00:30]} Kd7 {[%emt 0:00:30]} 39. Kb6 {[%emt 0:00:30]} g6 {[%emt 0:00:30]} 40. Nd6 {[%emt 0:00:30]} f6 {[%emt 0:00:30]} 41. Ne4 {[%emt 0:00:30]} f5 {[%emt 0:00:30]} 42. gxf5 {[%emt 0:00:30]} gxf5 {[%emt 0:00:30]} 43. Nf6+ {[%emt 0:00:30]} Ke6 {[%emt 0:00:30]} 44. Kxc6 {[%emt 0:00:30]} Kxf6 {[%emt 0:00:30]} 45. Kd5 {[%emt 0:00:30]} e4 {[%emt 0:00:30]} 46. c6 {[%emt 0:00:30]} f4 {[%emt 0:00:30]} 47. Kxe4 {[%emt 0:00:30]} 1-0

[Event "6th Uppsala Young Champions 2019"]
[Site "Uppsala"]
[Date "2019.10.28"]
[Round "5.16"]
[White "Dingertz, Erik"]
[Black "Skahlberg Bjerknes-Lima de Far, Warg"]
[Result "1-0"]
[ECO "A36"]
[WhiteElo "1908"]
[BlackElo "1637"]
[Annotator "NA"]
[PlyCount "67"]
[EventDate "2019.10.25"]
[EventType "swiss"]
[EventCountry "SWE"]
[SourceTitle "playchess.com"]
[Source "ChessBase"]
[SourceQuality "1"]
[TimeControl "5400+30"]

1. c4 {[%emt 1:30:30]} c5 {[%emt 1:30:30]} 2. Nc3 {[%emt 0:00:30]} Nc6 {[%emt 0:00:30]} 3. g3 {[%emt 0:00:30]} g6 {[%emt 0:00:30]} 4. Bg2 {[%emt 0:00:30]} Bg7 {[%emt 0:00:30]} 5. a3 {[%emt 0:00:30]} d6 {[%emt 0:00:30]} 6. Rb1 {[%emt 0:00:30]} a5 {[%emt 0:00:30]} 7. e3 {[%emt 0:00:30] A36: Symmetrical English vs ...g6: 4 Bg2 Bg7} (7. d3 e5 8. e4 h5 9. h4 Bh6 10. Bh3 Bxc1 11. Rxc1 Nf6 12. Bxc8 Rxc8 13. Nge2 O-O 14. O-O Qd7 15. Kg2 Kg7 {1-0 (68) Giri,A (2790)-Karjakin,S (2779) Shamkir 2016}) 7... Bf5 {[%emt 0:00:30]} 8. d3 {[%emt 0:00:30]} Nf6 {[%emt 0:00:30]} 9. Nge2 {[%emt 0:00:30]} Qc8 $146 {[%emt 0:00:30]} ({Predecessor:} 9... Ne5 10. e4 Bg4 11. h3 Bf3 12. O-O Nfd7 13. Be3 O-O 14. Bxf3 Nxf3+ 15. Kg2 Nde5 {0-1 (46) Gazik,V (2414)-Cernousek,L (2492) Bojnice 2016}) 10. Nb5 {[%emt 0:00:30]} Ne5 {[%emt 0:00:30]} 11. e4 {[%emt 0:00:30]} Bg4 {[%emt 0:00:30]} 12. h3 {[%emt 0:00:30]} Bf3 {[%emt 0:00:30]} 13. O-O {[%emt 0:00:30]} Nfd7 {[%emt 0:00:30]} 14. b3 {[%emt 0:00:30]} O-O {[%emt 0:00:30]} 15. d4 {[%emt 0:00:30]} (15. Bxf3 $14 Nxf3+ 16. Kg2) 15... cxd4 {[%emt 0:00:30]} 16. Nbxd4 {[%emt 0:00:30]} Bxg2 {[%emt 0:00:30]} 17. Kxg2 {[%emt 0:00:30] [#]} Nc6 {[%emt 0:00:30]} (17... a4 $1 $15 {[%mdl 512]}) 18. Be3 {[%emt 0:00:30]} (18. a4 $14) 18... Nc5 {[%emt 0:00:30]} (18... a4 $15) 19. Nc3 {[%emt 0:00:30]} Ne6 {[%emt 0:00:30]} (19... a4 $11) 20. Ndb5 {[%emt 0:00:30]} Nc7 {[%emt 0:00:30]} 21. Nxc7 {[%emt 0:00:30]} ({White should try} 21. Nd5 Nxd5 22. cxd5 (22. exd5 Ne5 $16)) 21... Qxc7 {[%emt 0:00:30]} 22. Nd5 {[%emt 0:00:30]} Qd8 {[%emt 0:00:30]} 23. Bb6 {[%emt 0:00:30]} Qd7 {[%emt 0:00:30]} 24. f4 {[%emt 0:00:30]} Rac8 $16 {[%emt 0:00:30]} 25. Bg1 {[%emt 0:00:30]} Qe6 {[%emt 0:00:30]} 26. Qe1 {[%emt 0:00:30]} Nd4 {[%emt 0:00:30]} 27. e5 {[%emt 0:00:30]} Nc6 {[%emt 0:00:30]} 28. exd6 {[%emt 0:00:30]} Qxd6 {[%emt 0:00:30]} 29. b4 {[%emt 0:00:30]} axb4 {[%emt 0:00:30]} 30. axb4 {[%emt 0:00:30]} e6 {[%emt 0:00:30]} 31. Bc5 {[%emt 0:00:30]} Qd8 {[%emt 0:00:30]} 32. Nb6 {[%emt 0:00:30]} Rb8 {[%emt 0:00:30]} 33. Rd1 {[%emt 0:00:30]} Qc7 {[%emt 0:00:30]} 34. Rd7 {[%emt 0:00:30]} 1-0

[Event "6th Uppsala Young Champions 2019"]
[Site "Uppsala"]
[Date "2019.10.28"]
[Round "6.2"]
[White "Storme, Isak"]
[Black "Abdrlauf, Elham"]
[Result "1/2-1/2"]
[ECO "E20"]
[WhiteElo "2244"]
[BlackElo "2213"]
[Annotator "NA RC"]
[PlyCount "114"]
[EventDate "2019.10.25"]
[EventType "swiss"]
[EventCountry "SWE"]
[SourceTitle "playchess.com"]
[Source "ChessBase"]
[SourceQuality "1"]
[TimeControl "5400+30"]

1. d4 {[%emt 0:01:18]} Nf6 {[%emt 0:02:23]} 2. c4 {[%emt 0:00:16]} e6 {[%emt 0:01:03]} 3. Nc3 {[%emt 0:00:08]} Bb4 {[%emt 0:00:05]} 4. f3 {[%emt 0:00:06]} d5 {[%emt 0:00:14]} 5. a3 {[%emt 0:00:05]} Bxc3+ {[%emt 0:00:01]} 6. bxc3 {[%emt 0:00:08]} c6 {[%emt 0:00:05]} 7. e3 {[%emt 0:10:15]} O-O {[%emt 0:01:36]} 8. Bd3 {[%emt 0:00:49]} b6 {[%emt 0:10:07]} 9. Ne2 {[%emt 0:13:24]} Ba6 {[%emt 0:02:18]} 10. cxd5 {[%emt 0:00:27]} Bxd3 {[%emt 0:03:56]} 11. Qxd3 {[%emt 0:00:42]} cxd5 {[%emt 0:00:17]} 12. e4 {[%emt 0:00:59]} dxe4 {[%emt 0:04:59]} 13. fxe4 {[%emt 0:00:15]} Nbd7 {[%emt 0:00:14]} 14. Qf3 {[%emt 0:11:13]} Qc7 {[%emt 0:03:31]} 15. O-O {[%emt 0:02:40]} Rac8 {[%emt 0:06:19]} 16. e5 {[%emt 0:14:53]} Nd5 {[%emt 0:00:04]} 17. Qg4 {[%emt 0:00:30]} f5 {[%emt 0:03:39]} 18. exf6 {[%emt 0:03:21]} N7xf6 {[%emt 0:00:03]} 19. Qxe6+ {[%emt 0:01:40]} Kh8 {[%emt 0:00:02]} 20. Qh3 {[%emt 0:09:09]} Ne4 {[%emt 0:04:55]} 21. Nf4 {[%emt 0:02:49]} Nxf4 {[%emt 0:01:02]} 22. Bxf4 {[%emt 0:00:15]} Qxc3 {[%emt 0:03:03]} 23. Qxc3 {[%emt 0:00:14]} Nxc3 {[%emt 0:00:02]} 24. Be5 {[%emt 0:01:25]} Kg8 {[%emt 0:00:03]} 25. h3 {[%emt 0:01:41]} g6 {[%emt 0:02:43]} 26. Kh2 {[%emt 0:00:31]} b5 {[%emt 0:01:46]} 27. Rxf8+ {[%emt 0:01:38]} Kxf8 {[%emt 0:00:36]} 28. Bd6+ {[%emt 0:05:04]} Kf7 {[%emt 0:08:50]} 29. Re1 {[%emt 0:00:39]} Nd5 {[%emt 0:00:01]} 30. Re5 {[%emt 0:00:37]} Rd8 {[%emt 0:00:14]} 31. Rxd5 {[%emt 0:00:37]} a6 {[%emt 0:00:01]} 32. Rc5 {[%emt 0:05:41]} Rxd6 {[%emt 0:01:12]} 33. Rc7+ {[%emt 0:00:09]} Ke6 {[%emt 0:00:39]} 34. Rxh7 {[%emt 0:00:43]} Kd5 {[%emt 0:01:42]} 35. Kg3 {[%emt 0:02:53]} Kc4 {[%emt 0:03:02]} 36. Kf4 {[%emt 0:00:12]} Rxd4+ {[%emt 0:00:35]} 37. Kg5 {[%emt 0:00:52]} Kb3 {[%emt 0:02:22]} 38. Kxg6 {[%emt 0:02:36]} Kxa3 {[%emt 0:00:04]} 39. Kf5 {[%emt 0:02:57]} Ra4 {[%emt 0:04:10]} 40. g4 {[%emt 0:03:21]} b4 {[%emt 0:00:16]} 41. h4 {[%emt 0:01:09]} b3 {[%emt 0:00:39]} 42. Re7 {[%emt 0:00:37]} b2 {[%emt 0:00:13]} 43. Re1 {[%emt 0:00:16]} Kb3 {[%emt 0:01:18]} 44. h5 {[%emt 0:01:01]} Ra1 {[%emt 0:00:22]} 45. Re3+ {[%emt 0:00:10]} Kc4 {[%emt 0:00:10]} 46. Re4+ {[%emt 0:00:17]} Kc5 {[%emt 0:00:05]} 47. Re5+ {[%emt 0:00:26]} Kd6 {[%emt 0:00:03]} 48. Re6+ {[%emt 0:00:07]} Kd7 {[%emt 0:00:11]} 49. Rb6 {[%emt 0:00:14]} b1=Q+ {[%emt 0:00:26]} 50. Rxb1 {[%emt 0:00:05]} Rxb1 {[%emt 0:00:02]} 51. h6 {[%emt 0:01:11]} a5 {[%emt 0:00:45]} 52. g5 {[%emt 0:00:27]} Ke7 {[%emt 0:00:21]} 53. Kg6 {[%emt 0:00:38]} Kf8 {[%emt 0:01:22]} 54. Kh7 {[%emt 0:00:05]} Rb7+ {[%emt 0:00:02]} 55. Kh8 {[%emt 0:00:13]} Rb6 {[%emt 0:00:17]} 56. g6 {[%emt 0:00:16]} Rxg6 {[%emt 0:04:31]} 57. h7 {[%emt 0:04:06]} Ra6 {[%emt 0:29:29]} 1/2-1/2

[Event "6th Uppsala Young Champions 2019"]
[Site "Uppsala"]
[Date "2019.10.28"]
[Round "6.9"]
[White "Fjallheim, Leif Reinert"]
[Black "Nguyen, Gabriel"]
[Result "1-0"]
[ECO "D00"]
[WhiteElo "1985"]
[BlackElo "2071"]
[Annotator "NA RC"]
[PlyCount "105"]
[EventDate "2019.10.25"]
[EventType "swiss"]
[EventCountry "SWE"]
[SourceTitle "playchess.com"]
[Source "ChessBase"]
[SourceQuality "1"]
[TimeControl "5400+30"]

1. d4 {[%emt 0:00:00]} d5 {[%emt 0:00:00]} 2. Bf4 {[%emt 0:00:52]} Nf6 {[%emt 0:00:00]} 3. Nc3 {[%emt 0:01:06]} Bf5 {[%emt 0:05:22]} 4. e3 {[%emt 0:00:21]} c6 {[%emt 0:01:28]} 5. Nf3 {[%emt 0:02:49]} e6 {[%emt 0:00:50]} 6. Bd3 {[%emt 0:02:37]} Bxd3 {[%emt 0:01:39]} 7. cxd3 {[%emt 0:00:36]} h6 {[%emt 0:00:48]} 8. h3 {[%emt 0:01:18]} Be7 {[%emt 0:02:20]} 9. Qb3 {[%emt 0:01:15]} Qb6 {[%emt 0:01:50]} 10. O-O {[%emt 0:03:40]} Qxb3 {[%emt 0:04:17]} 11. axb3 {[%emt 0:00:05]} O-O {[%emt 0:00:13]} 12. Na4 {[%emt 0:02:10]} Nfd7 {[%emt 1:17:13]} 13. Rfc1 {[%emt 0:06:16]} Na6 {[%emt 0:00:00]} 14. Ne5 {[%emt 0:01:08]} Nxe5 {[%emt 0:00:00]} 15. Bxe5 {[%emt 0:00:13]} f6 {[%emt 0:00:00]} 16. Bg3 {[%emt 0:00:24]} g5 {[%emt 0:00:00]} 17. Nc5 {[%emt 0:02:21]} Bxc5 {[%emt 0:00:00]} 18. dxc5 {[%emt 0:00:34]} e5 {[%emt 0:00:00]} 19. Ra4 {[%emt 0:01:41]} Rfe8 {[%emt 0:00:00]} 20. Kf1 {[%emt 0:04:35]} f5 {[%emt 0:00:00]} 21. f3 {[%emt 0:02:04]} Kg7 {[%emt 0:00:00]} 22. d4 {[%emt 0:07:49]} f4 {[%emt 0:00:00]} 23. Bf2 {[%emt 0:05:21]} e4 {[%emt 0:00:00]} 24. Re1 {[%emt 0:02:18]} exf3 {[%emt 0:00:00]} 25. gxf3 {[%emt 0:00:11]} fxe3 {[%emt 0:00:00]} 26. Rxe3 {[%emt 0:10:37]} Rxe3 {[%emt 0:00:00]} 27. Bxe3 {[%emt 0:00:05]} Kg6 {[%emt 0:00:00]} 28. Bf2 {[%emt 0:01:11]} Re8 {[%emt 0:00:00]} 29. Bg1 {[%emt 0:05:22]} Kh5 {[%emt 0:00:00]} 30. Kf2 {[%emt 0:01:04]} Kh4 {[%emt 0:00:00]} 31. Bh2 {[%emt 0:00:41]} Kh5 {[%emt 0:00:00]} 32. Bg3 {[%emt 0:02:35]} Kg6 {[%emt 0:00:00]} 33. Bd6 {[%emt 0:02:36]} h5 {[%emt 0:00:00]} 34. Bh2 {[%emt 0:11:38]} Kf5 {[%emt 0:00:00]} 35. Ra1 {[%emt 0:03:49]} Re7 {[%emt 0:00:00]} 36. Bd6 {[%emt 0:00:37]} Re6 {[%emt 0:00:00]} 37. Bh2 {[%emt 0:03:04]} Re7 {[%emt 0:00:00]} 38. Bd6 {[%emt 0:01:10]} Re8 {[%emt 0:00:00]} 39. Bh2 {[%emt 0:01:15]} Nb4 {[%emt 0:06:44]} 40. Rd1 {[%emt 0:01:28]} Re6 {[%emt 0:02:24]} 41. Bb8 {[%emt 0:01:29]} a6 {[%emt 0:00:17]} 42. Bc7 {[%emt 0:01:34]} Nc2 {[%emt 0:00:45]} 43. Rd2 {[%emt 0:00:52]} Ne3 {[%emt 0:01:39]} 44. Be5 {[%emt 0:00:56]} Rxe5 {[%emt 0:01:43]} 45. dxe5 {[%emt 0:00:06]} d4 {[%emt 0:00:21]} 46. Rxd4 {[%emt 0:00:50]} Nd5 {[%emt 0:00:01]} 47. Re4 {[%emt 0:01:34]} Nf4 {[%emt 0:00:50]} 48. Ke3 {[%emt 0:01:06]} a5 {[%emt 0:00:37]} 49. Rxf4+ {[%emt 0:03:05]} gxf4+ {[%emt 0:00:06]} 50. Kd4 {[%emt 0:00:04]} h4 {[%emt 0:00:26]} 51. e6 {[%emt 0:00:08]} Kxe6 {[%emt 0:00:11]} 52. Ke4 {[%emt 0:00:05]} a4 {[%emt 0:02:56]} 53. bxa4 {[%emt 0:05:45] Kd5+} 1-0

[Event "6th Uppsala Young Champions 2019"]
[Site "Uppsala"]
[Date "2019.10.28"]
[Round "6.11"]
[White "Falkevall, Axel"]
[Black "Berglind, Axel"]
[Result "0-1"]
[ECO "B22"]
[WhiteElo "2036"]
[BlackElo "2062"]
[Annotator "NA RC"]
[PlyCount "60"]
[EventDate "2019.10.25"]
[EventType "swiss"]
[EventCountry "SWE"]
[SourceTitle "playchess.com"]
[Source "ChessBase"]
[SourceQuality "1"]
[TimeControl "5400+30"]

1. e4 {[%emt 1:30:30]} c5 {[%emt 1:30:30]} 2. c3 {[%emt 0:00:30]} Nf6 {[%emt 0:00:30]} 3. e5 {[%emt 0:00:30]} Nd5 {[%emt 0:00:30]} 4. d4 {[%emt 0:00:30]} cxd4 {[%emt 0:00:30]} 5. Nf3 {[%emt 0:00:30]} Nc6 {[%emt 0:00:30]} 6. cxd4 {[%emt 0:00:30]} d6 {[%emt 0:00:30]} 7. Bc4 {[%emt 0:00:30]} Nb6 {[%emt 0:00:30]} 8. Bb3 {[%emt 0:00:30]} Bg4 {[%emt 0:00:30]} 9. Bxf7+ {[%emt 0:00:30]} Kd7 {[%emt 0:00:30]} 10. Bb3 {[%emt 0:00:30]} Kc7 {[%emt 0:00:30]} 11. exd6+ {[%emt 0:00:30]} exd6 {[%emt 0:00:30]} 12. Be3 {[%emt 0:00:30]} Rc8 {[%emt 0:00:30]} 13. Nbd2 {[%emt 0:00:30]} d5 {[%emt 0:00:30]} 14. h3 {[%emt 0:00:30]} Bh5 {[%emt 0:00:30]} 15. O-O {[%emt 0:00:30]} Bd6 {[%emt 0:00:30]} 16. Bc2 {[%emt 0:00:30]} Kb8 {[%emt 0:00:30]} 17. a3 {[%emt 0:00:30]} Rf8 {[%emt 0:00:30]} 18. Qb1 {[%emt 0:00:30]} Bxf3 {[%emt 0:00:30]} 19. Nxf3 {[%emt 0:00:30]} Qd7 {[%emt 0:00:30]} 20. Qd1 {[%emt 0:00:30]} Nc4 {[%emt 0:00:30]} 21. Rb1 {[%emt 0:00:30]} Bc7 {[%emt 0:00:30]} 22. Re1 {[%emt 0:00:30]} Qd6 {[%emt 0:00:30]} 23. g3 {[%emt 0:00:30]} Qf6 {[%emt 0:00:30]} 24. Kg2 {[%emt 0:00:30]} Nxe3+ {[%emt 0:00:30]} 25. Rxe3 {[%emt 0:00:30]} Bb6 {[%emt 0:00:30]} 26. Rd3 {[%emt 0:00:30]} Nxd4 {[%emt 0:00:30]} 27. Nxd4 {[%emt 0:00:30]} Qxf2+ {[%emt 0:00:30]} 28. Kh1 {[%emt 0:00:30]} Bxd4 {[%emt 0:00:30]} 29. Rd2 {[%emt 0:00:30]} Qxg3 {[%emt 0:00:30]} 30. Rxd4 {[%emt 0:00:30]} Rf2 {[%emt 0:00:30]} 0-1

[Event "6th Uppsala Young Champions 2019"]
[Site "Uppsala"]
[Date "2019.10.28"]
[Round "6.13"]
[White "Wernberg, Hugo"]
[Black "Soderstrom, Adrian"]
[Result "1-0"]
[ECO "C54"]
[WhiteElo "2006"]
[BlackElo "1960"]
[Annotator "NA RC"]
[PlyCount "117"]
[EventDate "2019.10.25"]
[EventType "swiss"]
[EventCountry "SWE"]
[SourceTitle "playchess.com"]
[Source "ChessBase"]
[SourceQuality "1"]
[TimeControl "5400+30"]

1. e4 {[%emt 0:00:00]} e5 {[%emt 0:00:45]} 2. Nf3 {[%emt 0:00:00]} Nc6 {[%emt 0:00:02]} 3. Bc4 {[%emt 0:00:00]} Bc5 {[%emt 0:00:05]} 4. c3 {[%emt 0:00:18]} Nf6 {[%emt 0:00:04]} 5. d3 {[%emt 0:00:17]} d6 {[%emt 0:00:23]} 6. O-O {[%emt 0:00:25]} a6 {[%emt 0:00:04]} 7. a4 {[%emt 0:00:15]} h6 {[%emt 0:00:12]} 8. Be3 {[%emt 0:01:03]} Ba7 {[%emt 0:01:04]} 9. Bxa7 {[%emt 0:00:37]} Rxa7 {[%emt 0:00:02]} 10. Re1 {[%emt 0:01:08]} b5 {[%emt 0:02:59]} 11. axb5 {[%emt 0:05:09]} axb5 {[%emt 0:00:01]} 12. Rxa7 {[%emt 0:00:05]} Nxa7 {[%emt 0:00:04]} 13. Bb3 {[%emt 0:00:29]} O-O {[%emt 0:00:27]} 14. Nbd2 {[%emt 0:06:46]} c5 {[%emt 0:02:23]} 15. Nf1 {[%emt 0:01:53]} Nc6 {[%emt 0:01:47]} 16. Ng3 {[%emt 0:01:10]} Re8 {[%emt 0:05:41]} 17. h3 {[%emt 0:03:55]} Re7 {[%emt 0:12:45]} 18. Nh4 {[%emt 0:13:20]} Be6 {[%emt 0:00:38]} 19. Nhf5 {[%emt 0:02:42]} Rb7 {[%emt 0:06:00]} 20. Bc2 {[%emt 0:06:31]} Rd7 {[%emt 0:02:17]} 21. d4 {[%emt 0:05:58]} cxd4 {[%emt 0:00:33]} 22. cxd4 {[%emt 0:00:13]} d5 {[%emt 0:00:17]} 23. dxe5 {[%emt 0:01:00]} dxe4 {[%emt 0:01:46]} 24. Qb1 {[%emt 0:01:24]} Nxe5 {[%emt 0:00:35]} 25. Nxe4 {[%emt 0:01:33]} Bxf5 {[%emt 0:01:54]} 26. Nxf6+ {[%emt 0:00:14]} Qxf6 {[%emt 0:00:03]} 27. Bxf5 {[%emt 0:00:19]} Re7 {[%emt 0:00:29]} 28. Bc2 {[%emt 0:14:19]} g6 {[%emt 0:00:26]} 29. Re4 {[%emt 0:02:03]} Kg7 {[%emt 0:01:42]} 30. Qe1 {[%emt 0:01:53]} Nc6 {[%emt 0:08:44]} 31. Rxe7 {[%emt 0:01:00]} Nxe7 {[%emt 0:00:06]} 32. Qb4 {[%emt 0:02:36]} Qg5 {[%emt 0:02:15]} 33. Bd3 {[%emt 0:02:38]} Qc1+ {[%emt 0:06:39]} 34. Bf1 {[%emt 0:01:38]} Nd5 {[%emt 0:00:38]} 35. Qxb5 {[%emt 0:00:39]} Nf4 {[%emt 0:00:11]} 36. Qc4 {[%emt 0:05:57]} Nxh3+ {[%emt 0:01:11]} 37. gxh3 {[%emt 0:00:42]} Qxb2 {[%emt 0:00:05]} 38. Qd5 {[%emt 0:01:37]} Qa1 {[%emt 0:00:47]} 39. Kg2 {[%emt 0:00:47]} Qf6 {[%emt 0:00:20]} 40. Bc4 {[%emt 0:00:28]} Qf4 {[%emt 0:00:14]} 41. Bb3 {[%emt 0:00:57]} Qf6 {[%emt 0:00:51]} 42. h4 {[%emt 0:03:54]} h5 {[%emt 0:04:17]} 43. Qe4 {[%emt 0:01:18]} Qc3 {[%emt 0:02:23]} 44. Bd1 {[%emt 0:00:53]} Qa1 {[%emt 0:01:06]} 45. Be2 {[%emt 0:00:33]} Qc3 {[%emt 0:00:58]} 46. Bf3 {[%emt 0:00:45]} Qf6 {[%emt 0:00:44]} 47. Kg3 {[%emt 0:01:02]} Qc3 {[%emt 0:00:22]} 48. Qf4 {[%emt 0:00:29]} Qc5 {[%emt 0:01:24]} 49. Kg2 {[%emt 0:00:23]} Qe7 {[%emt 0:03:02]} 50. Qg5 {[%emt 0:01:30]} Qc7 {[%emt 0:01:27]} 51. Bxh5 {[%emt 0:02:27]} Qc6+ {[%emt 0:07:06]} 52. Bf3 {[%emt 0:00:53]} Qc4 {[%emt 0:00:03]} 53. h5 {[%emt 0:01:28]} Kh7 {[%emt 0:00:04]} 54. Bd5 {[%emt 0:02:22]} Qc7 {[%emt 0:00:01]} 55. Qf6 {[%emt 0:00:56]} Kg8 {[%emt 0:00:07]} 56. Qxg6+ {[%emt 0:00:12]} Kh8 {[%emt 0:00:10]} 57. Qf6+ {[%emt 0:00:11]} Kg8 {[%emt 0:00:22]} 58. Qxf7+ {[%emt 0:00:10]} Kh8 {[%emt 0:00:06]} 59. Qg8# {[%emt 0:00:09]} 1-0

[Event "6th Uppsala Young Champions 2019"]
[Site "Uppsala"]
[Date "2019.10.28"]
[Round "6.14"]
[White "Carlsson, Ludvig"]
[Black "Ostensson, Julia"]
[Result "1-0"]
[ECO "A00"]
[WhiteElo "2066"]
[BlackElo "1483"]
[Annotator "NA RC"]
[PlyCount "53"]
[EventDate "2019.10.25"]
[EventType "swiss"]
[EventCountry "SWE"]
[SourceTitle "playchess.com"]
[Source "ChessBase"]
[SourceQuality "1"]
[TimeControl "5400+30"]

1. b4 {[%emt 1:30:30]} e5 {[%emt 1:30:30]} 2. Bb2 {[%emt 0:00:30]} Bxb4 {[%emt 0:00:30]} 3. Bxe5 {[%emt 0:00:30]} Nf6 {[%emt 0:00:30]} 4. c4 {[%emt 0:00:30]} O-O {[%emt 0:00:30]} 5. Nf3 {[%emt 0:00:30]} d6 {[%emt 0:00:30]} 6. Bb2 {[%emt 0:00:30]} Nc6 {[%emt 0:00:30]} 7. Qc2 {[%emt 0:00:30]} h6 {[%emt 0:00:30]} 8. h4 {[%emt 0:00:30]} Nh7 {[%emt 0:00:30]} 9. Nc3 {[%emt 0:00:30]} Bxc3 {[%emt 0:00:30]} 10. Qxc3 {[%emt 0:00:30]} Qf6 {[%emt 0:00:30]} 11. Qb3 {[%emt 0:00:30]} Qe7 {[%emt 0:00:30]} 12. e3 {[%emt 0:00:30]} b6 {[%emt 0:00:30]} 13. Bd3 {[%emt 0:00:30]} Nf6 {[%emt 0:00:30]} 14. Qc3 {[%emt 0:00:30]} Re8 {[%emt 0:00:30]} 15. O-O-O {[%emt 0:00:30]} Ne5 {[%emt 0:00:30]} 16. Nxe5 {[%emt 0:00:30]} dxe5 {[%emt 0:00:30]} 17. f3 {[%emt 0:00:30]} Bb7 {[%emt 0:00:30]} 18. Rh3 {[%emt 0:00:30]} a5 {[%emt 0:00:30]} 19. a3 {[%emt 0:00:30]} c6 {[%emt 0:00:30]} 20. g4 {[%emt 0:00:30]} Qd7 {[%emt 0:00:30]} 21. Bf5 {[%emt 0:00:30]} Qd6 {[%emt 0:00:30]} 22. f4 {[%emt 0:00:30]} Nd7 {[%emt 0:00:30]} 23. d4 {[%emt 0:00:30]} exf4 {[%emt 0:00:30]} 24. d5 {[%emt 0:00:30]} Qf6 {[%emt 0:00:30]} 25. Bxd7 {[%emt 0:00:30]} Qxc3+ {[%emt 0:00:30]} 26. Bxc3 {[%emt 0:00:30]} Re7 {[%emt 0:00:30]} 27. dxc6 {[%emt 0:00:30]} 1-0